fUST/lending_fUST_20250901
["ID","MTS","AMOUNT","RATE_DAILY","PERIOD"]
[382720061,1756719055719,-480.0,0.00014794,2]
[382720062,1756719055728,-480.0,0.00014794,2]
[382720063,1756719055737,-480.0,0.00014794,2]
[382720064,1756719055746,-480.0,0.00014794,2]
[382720065,1756719055755,-480.0,0.00014794,2]
[382720066,1756719055764,-480.0,0.00014794,2]
[382720067,1756719055774,-480.0,0.00014794,2]
[382720068,1756719055784,-480.0,0.00014794,2]
[382720069,1756719055793,-480.0,0.00014794,2]
[382720070,1756719055802,-480.0,0.00014794,2]
[382720071,1756719055811,-480.0,0.00014794,2]
[382720072,1756719055820,-480.0,0.00014794,2]
[382720073,1756719055829,-307.43548879,0.00014794,2]
[382720074,1756719055838,-480.0,0.00014794,2]
[382720075,1756719055847,-480.0,0.00014794,2]
[382720076,1756719055857,-789.77,0.00014794,2]
[382720077,1756719055866,-480.0,0.00014794,2]
[382720078,1756719055875,-480.0,0.00014794,2]
[382720079,1756719055885,-480.0,0.00014794,2]
[382720080,1756719055894,-480.0,0.00014794,2]
[382720081,1756719055904,-858.29,0.00014794,2]
[382720082,1756719055913,-879.79,0.00014794,2]
[382720083,1756719055922,-480.0,0.00014794,2]
[382720084,1756719055932,-480.0,0.00014794,2]
[382720085,1756719055941,-480.0,0.00014794,2]
[382720086,1756719055951,-711.9,0.00014794,2]
[382720087,1756719055960,-480.0,0.00014794,2]
[382720088,1756719055969,-568.51,0.00014794,2]
[382720089,1756719055978,-763.81,0.00014794,2]
[382720090,1756719055987,-480.0,0.00014794,2]
[382720091,1756719055997,-480.0,0.00014794,2]
[382720092,1756719056006,-411.89997423,0.00014794,2]
[382720093,1756719056015,-613.69,0.00014794,2]
[382720094,1756719056024,-480.0,0.00014794,2]
[382720095,1756719056033,-700.7,0.00014794,2]
[382720096,1756719056042,-532.46762541,0.00014794,2]
[382720097,1756719056052,-764.0,0.00014794,2]
[382720098,1756719056061,-730.48,0.00014794,2]
[382720099,1756719056070,-151.0,0.00014794,2]
[382720100,1756719056079,-480.0,0.00014794,2]
[382720101,1756719056090,-480.0,0.00014794,2]
[382720102,1756719056099,-480.0,0.00014794,2]
[382720103,1756719056109,-480.0,0.00014794,2]
[382720104,1756719056118,-480.0,0.00014794,2]
[382720105,1756719056127,-151.0,0.00014794,2]
[382720106,1756719056137,-151.0,0.00014794,2]
[382720107,1756719056146,-480.0,0.00014794,2]
[382720108,1756719056155,-480.0,0.00014794,2]
[382720109,1756719056164,-480.0,0.00014794,2]
[382720110,1756719056174,-480.0,0.00014794,2]
[382720111,1756719056184,-480.0,0.00014794,2]
[382720112,1756719056194,-480.0,0.00014794,2]
[382720113,1756719056203,-480.0,0.00014794,2]
[382720114,1756719056212,-514.67,0.00014794,2]
[382720115,1756719056222,-480.0,0.00014794,2]
[382720116,1756719056231,-480.0,0.00014794,2]
[382720117,1756719056240,-480.0,0.00014794,2]
[382720118,1756719056249,-734.2,0.00014794,2]
[382720119,1756719056258,-480.0,0.00014794,2]
[382720120,1756719056268,-483.77,0.00014794,2]
[382720121,1756719056277,-798.99,0.00014794,2]
[382720122,1756719056286,-480.0,0.00014794,2]
[382720123,1756719056295,-480.0,0.00014794,2]
[382720124,1756719056305,-403.93639956,0.00014794,2]
[382720125,1756719056314,-480.0,0.00014794,2]
[382720126,1756719056323,-480.0,0.00014794,2]
[382720127,1756719056332,-480.0,0.00014794,2]
[382720128,1756719056341,-480.0,0.00014794,2]
[382720129,1756719056350,-486.18,0.00014794,2]
[382720130,1756719056359,-480.0,0.00014794,2]
[382720131,1756719056368,-765.0,0.00014794,2]
[382720132,1756719056378,-480.0,0.00014794,2]
[382720133,1756719056392,-480.0,0.00014794,2]
[382720134,1756719056402,-670.38,0.00014794,2]
[382720135,1756719056411,-731.06,0.00014794,2]
[382720136,1756719056423,-480.0,0.00014794,2]
[382720137,1756719056434,-736.62,0.00014794,2]
[382720138,1756719056443,-569.73,0.00014794,2]
[382720139,1756719056451,-480.0,0.00014794,2]
[382720140,1756719056463,-480.0,0.00014794,2]
[382720141,1756719056473,-498.08602633,0.00014794,2]
[382720142,1756719056482,-969.25,0.00014794,2]
[382720143,1756719056490,-480.0,0.00014794,2]
[382720144,1756719056500,-647.48,0.00014794,2]
[382720145,1756719056508,-762.24,0.00014794,2]
[382720146,1756719056517,-480.0,0.00014794,2]
[382720147,1756719056526,-318.88467507,0.00014794,2]
[382720148,1756719056534,-480.0,0.00014794,2]
[382720149,1756719056543,-998.76,0.00014794,2]
[382720150,1756719056552,-480.0,0.00014794,2]
[382720151,1756719056561,-480.0,0.00014794,2]
[382720152,1756719056570,-480.0,0.00014794,2]
[382720153,1756719056578,-480.0,0.00014794,2]
[382720154,1756719056587,-480.0,0.00014794,2]
[382720155,1756719056595,-480.0,0.00014794,2]
[382720156,1756719056605,-480.0,0.00014794,2]
[382720157,1756719056614,-683.92,0.00014794,2]
[382720158,1756719056623,-1217.44,0.00014794,2]
[382720159,1756719056632,-480.0,0.00014794,2]
[382720160,1756719056641,-738.59,0.00014794,2]
[382720161,1756719056649,-634.62,0.00014794,2]
[382720162,1756719056658,-480.0,0.00014794,2]
[382720163,1756719056666,-492.5,0.00014794,2]
[382720164,1756719056675,-480.0,0.00014794,2]
[382720165,1756719056685,-480.0,0.00014794,2]
[382720166,1756719056694,-480.0,0.00014794,2]
[382720167,1756719056702,-480.0,0.00014794,2]
[382720168,1756719056711,-480.0,0.00014794,2]
[382720169,1756719056720,-480.0,0.00014794,2]
[382720170,1756719056729,-1991.25,0.00014794,2]
[382720171,1756719056738,-480.0,0.00014794,2]
[382720172,1756719056746,-707.25,0.00014794,2]
[382720173,1756719056755,-480.0,0.00014794,2]
[382720174,1756719056763,-1376.3,0.00014794,2]
[382720175,1756719056772,-480.0,0.00014794,2]
[382720176,1756719056781,-918.69,0.00014794,2]
[382720177,1756719056789,-480.0,0.00014794,2]
[382720178,1756719056798,-601.43,0.00014794,2]
[382720179,1756719056807,-480.0,0.00014794,2]
[382720180,1756719056816,-480.0,0.00014794,2]
[382720181,1756719056825,-973.19,0.00014794,2]
[382720182,1756719056833,-600.16,0.00014794,2]
[382720183,1756719056842,-480.0,0.00014794,2]
[382720184,1756719056850,-734.35,0.00014794,2]
[382720185,1756719056859,-480.0,0.00014794,2]
[382720186,1756719056868,-533.48,0.00014794,2]
[382720187,1756719056877,-713.84,0.00014794,2]
[382720188,1756719056886,-480.0,0.00014794,2]
[382720189,1756719056895,-480.0,0.00014794,2]
[382720190,1756719056904,-480.0,0.00014794,2]
[382720191,1756719056913,-480.0,0.00014794,2]
[382720192,1756719056922,-518.19,0.00014794,2]
[382720193,1756719056932,-480.0,0.00014794,2]
[382720194,1756719056943,-596.14,0.00014794,2]
[382720195,1756719056951,-1044.84,0.00014794,2]
[382720196,1756719056961,-480.0,0.00014794,2]
[382720197,1756719056970,-694.38,0.00014794,2]
[382720198,1756719056978,-480.0,0.00014794,2]
[382720199,1756719056987,-480.0,0.00014794,2]
[382720200,1756719056996,-560.16,0.00014794,2]
[382720201,1756719057005,-480.0,0.00014794,2]
[382720202,1756719057014,-686.66,0.00014794,2]
[382720203,1756719057022,-480.0,0.00014794,2]
[382720204,1756719057031,-732.75,0.00014794,2]
[382720205,1756719057040,-1212.2,0.00014794,2]
[382720206,1756719057048,-1020.68,0.00014794,2]
[382720207,1756719057057,-480.0,0.00014794,2]
[382720208,1756719057066,-527.63,0.00014794,2]
[382720209,1756719057075,-3976.44,0.00014794,2]
[382720210,1756719057085,-489.14,0.00014794,2]
[382720211,1756719057094,-526.29,0.00014794,2]
[382720212,1756719057103,-477.80878983,0.00014794,2]
[382720213,1756719057112,-986.57,0.00014794,2]
[382720214,1756719057121,-480.0,0.00014794,2]
[382720215,1756719057130,-480.0,0.00014794,2]
[382720216,1756719057139,-1543.56,0.00014794,2]
[382720217,1756719057148,-480.0,0.00014794,2]
[382720218,1756719057157,-544.9,0.00014794,2]
[382720219,1756719057166,-480.0,0.00014794,2]
[382720220,1756719057175,-480.0,0.00014794,2]
[382720221,1756719057184,-480.0,0.00014794,2]
[382720222,1756719057194,-480.0,0.00014794,2]
[382720223,1756719057203,-769.17,0.00014794,2]
[382720224,1756719057212,-480.0,0.00014794,2]
[382720225,1756719057221,-480.0,0.00014794,2]
[382720226,1756719057230,-627.97,0.00014794,2]
[382720227,1756719057239,-1575.39,0.00014794,2]
[382720228,1756719057248,-480.0,0.00014794,2]
[382720229,1756719057257,-633.94,0.00014794,2]
[382720230,1756719057267,-480.0,0.00014794,2]
[382720231,1756719057275,-480.0,0.00014794,2]
[382720232,1756719057285,-480.0,0.00014794,2]
[382720233,1756719057294,-480.0,0.00014794,2]
[382720234,1756719057303,-480.0,0.00014794,2]
[382720235,1756719057313,-480.0,0.00014794,2]
[382720236,1756719057322,-4284.25,0.00014794,2]
[382720237,1756719057332,-480.0,0.00014794,2]
[382720238,1756719057341,-631.99,0.00014794,2]
[382720239,1756719057349,-480.0,0.00014794,2]
[382720240,1756719057359,-480.0,0.00014794,2]
[382720241,1756719057368,-480.0,0.00014794,2]
[382720242,1756719057377,-480.0,0.00014794,2]
[382720243,1756719057390,-480.0,0.00014794,2]
[382720244,1756719057399,-480.0,0.00014794,2]
[382720245,1756719057408,-646.38,0.00014794,2]
[382720246,1756719057418,-480.0,0.00014794,2]
[382720247,1756719057427,-737.42,0.00014794,2]
[382720248,1756719057436,-840.99,0.00014794,2]
[382720249,1756719057445,-480.0,0.00014794,2]
[382720250,1756719057455,-792.58,0.00014794,2]
[382720251,1756719057465,-398.53998854,0.00014794,2]
[382720252,1756719057474,-783.57,0.00014794,2]
[382720253,1756719057484,-1349.08,0.00014794,2]
[382720254,1756719057493,-480.0,0.00014794,2]
[382720255,1756719057503,-1226.67,0.00014794,2]
[382720256,1756719057513,-864.08,0.00014794,2]
[382720257,1756719057523,-282.23432,0.00014794,2]
[382720258,1756719057533,-480.0,0.00014794,2]
[382720259,1756719057542,-480.0,0.00014794,2]
[382720260,1756719057553,-480.0,0.00014794,2]
[382720261,1756719057562,-2568.62,0.00014794,2]
[382720262,1756719057572,-605.01,0.00014794,2]
[382720263,1756719057581,-610.08,0.00014794,2]
[382720264,1756719057591,-480.0,0.00014794,2]
[382720265,1756719057600,-736.79,0.00014794,2]
[382720266,1756719057610,-2842.52,0.00014794,2]
[382720267,1756719057620,-480.0,0.00014794,2]
[382720268,1756719057630,-333.66,0.00014794,2]
[382720269,1756719057639,-634.56,0.00014794,2]
[382720270,1756719057649,-723.45,0.00014794,2]
[382720271,1756719057658,-480.0,0.00014794,2]
[382720272,1756719057668,-480.0,0.00014794,2]
[382720273,1756719057678,-521.66,0.00014794,2]
[382720274,1756719057687,-1105.94,0.00014794,2]
[382720275,1756719057697,-480.0,0.00014794,2]
[382720276,1756719057706,-480.0,0.00014794,2]
[382720277,1756719057716,-540.1,0.00014794,2]
[382720278,1756719057726,-480.0,0.00014794,2]
[382720279,1756719057735,-1151.51,0.00014794,2]
[382720280,1756719057745,-480.0,0.00014794,2]
[382720281,1756719057754,-530.04951686,0.00014794,2]
[382720282,1756719057764,-480.0,0.00014794,2]
[382720283,1756719057773,-480.0,0.00014794,2]
[382720284,1756719057783,-608.45,0.00014794,2]
[382720285,1756719057793,-289.474385,0.00014794,2]
[382720286,1756719057803,-559.88,0.00014794,2]
[382720287,1756719057812,-626.38,0.00014794,2]
[382720288,1756719057822,-457.995468,0.00014794,2]
[382720289,1756719057831,-942.64,0.00014794,2]
[382720290,1756719057840,-457.995468,0.00014794,2]
[382720291,1756719057850,-151.0,0.00014794,2]
[382720292,1756719057860,-457.995468,0.00014794,2]
[382720293,1756719057869,-966.2,0.00014794,2]
[382720294,1756719057879,-4215.73,0.00014794,2]
[382720295,1756719057888,-552.86,0.00014794,2]
[382720296,1756719057898,-713.55,0.00014794,2]
[382720297,1756719057908,-457.995468,0.00014794,2]
[382720298,1756719057919,-151.0,0.000148,2]
[382720299,1756719057929,-245.0,0.00014825,2]
[382720300,1756719057938,-151.0,0.00014825,2]
[382720301,1756719057949,-151.0,0.00014825,2]
[382720302,1756719057959,-245.0,0.00014825,2]
[382720303,1756719057969,-1102.0,0.00014825,2]
[382720304,1756719057978,-245.0,0.00014825,2]
[382720305,1756719057988,-500.0,0.00014825,2]
[382720306,1756719057998,-560.0,0.00014847,2]
[382720307,1756719058008,-560.0,0.00014881,2]
[382720308,1756719058018,-1000.0,0.00014887,2]
[382720309,1756719058028,-1000.0,0.00014887,2]
[382720310,1756719058038,-1000.0,0.00014887,2]
[382720311,1756719058048,-632.0,0.00014889,2]
[382720312,1756719058057,-2153.0,0.00014889,2]
[382720313,1756719058067,-409.0,0.00014889,2]
[382720314,1756719058077,-423.777,0.00014889,2]
[382720315,1756719058086,-503.79265639,0.000149,2]
[382720316,1756719058097,-560.0,0.00014921,2]
[382720317,1756719058106,-560.0,0.00014926,2]
[382720318,1756719058116,-5574.6436278,0.00014979,2]
[382720319,1756719058126,-873.55095167,0.00015,2]
[382720320,1756719058136,-377.67433686,0.00015,2]
[382720321,1756719058145,-3490.70960288,0.00015,2]
[382720322,1756719058155,-1510.69734745,0.00015,2]
[382720323,1756719058165,-277.00843529,0.00015,2]
[382720324,1756719058176,-3395.66996272,0.00015,2]
[382720325,1756719058186,-160.0,0.00015,2]
[382720326,1756719058197,-480.0,0.00015068,2]
[382720327,1756719058206,-1575.60157525,0.00015068,2]
[382720357,1756719448262,-10000.01,0.00013,2]
[382720358,1756719448519,-10000.01,0.00013,2]
[382720359,1756719448806,-10000.01,0.00013,2]
[382720360,1756719449074,-10000.01,0.00013,2]
[382720361,1756719449332,-10000.01,0.0001287,2]
[382720362,1756719449575,-10000.01,0.0001287,2]
[382720363,1756719449871,-3251.93290573,0.0001287,2]
[382720364,1756719449894,-3496.14418854,0.0001287,2]
[382720365,1756719450139,-10000.01,0.00013,2]
[382720366,1756719450386,-10000.01,0.00013,2]
[382720367,1756719450668,-10000.01,0.00013,2]
[382720368,1756719468671,-3278.47519882,0.0001287,2]
[382720369,1756719468695,-3443.05960236,0.0001287,2]
[382720370,1756719468929,-10000.01,0.00013,2]
[382720371,1756719469221,-10000.01,0.00013,2]
[382720372,1756719469554,-10000.01,0.00013,2]
[382720373,1756719469819,-4476.88304814,0.00013,2]
[382720374,1756719469842,-1046.24390372,0.00013,2]
[382720375,1756719481289,1357.14661163,0.00012995,2]
[382720376,1756719482745,-1500.0,0.00013126,2]
[382720377,1756719490090,300.0,0.00013125,2]
[382720378,1756719497981,300.0,0.00013125,2]
[382720379,1756719502788,-300.0,0.00013258,2]
[382720380,1756719506571,457.14661163,0.00013126,2]
[382720381,1756719512755,-300.0,0.00013259,2]
[382720382,1756719512788,-300.0,0.00013259,2]
[382720383,1756719512821,-300.0,0.00013259,2]
[382720384,1756719512852,-300.0,0.00013259,2]
[382720385,1756719512883,-300.0,0.00013259,2]
[382720386,1756719512913,-300.0,0.00013259,2]
[382720387,1756719512944,-300.0,0.00013259,2]
[382720388,1756719512975,-300.0,0.00013259,2]
[382720389,1756719513004,-300.0,0.00013259,2]
[382720390,1756719513038,-300.0,0.00013259,2]
[382720391,1756719513072,-300.0,0.00013259,2]
[382720392,1756719513104,-300.0,0.00013259,2]
[382720393,1756719513138,-300.0,0.00013259,2]
[382720394,1756719513172,-300.0,0.00013259,2]
[382720395,1756719513206,-300.0,0.00013259,2]
[382720396,1756719514607,203.87399798,0.00013192,2]
[382720397,1756719520099,796.13600202,0.00012698,2]
[382720398,1756719520121,9203.86399798,0.00012698,2]
[382720399,1756719523204,203.87399798,0.00013192,2]
[382720400,1756719539491,203.87399798,0.00013192,2]
[382720401,1756719547600,203.87399798,0.00013192,2]
[382720402,1756719561956,2950.50094718,0.0001319,2]
[382720403,1756719564042,203.87399798,0.00013192,2]
[382720404,1756719584006,203.87399798,0.00013192,2]
[382720405,1756719599926,203.87399798,0.00013192,2]
[382720406,1756719608987,203.87399798,0.00013192,2]
[382720407,1756719612159,158.91512951,0.00013069,2]
[382720409,1756719624918,203.87399798,0.00013192,2]
[382720410,1756719633121,203.87399798,0.00013192,2]
[382720412,1756719647619,821.8712919,0.00012622,2]
[382720413,1756719648645,194.92323336,0.00013192,2]
[382720414,1756719662341,158.91512951,0.00013069,2]
[382720415,1756719722340,158.91512951,0.00013049,2]
[382720416,1756719731270,-203.87399798,0.00013192,2]
[382720417,1756719737934,9592.26200404,0.00012622,2]
[382720418,1756719737956,10000.01,0.00012622,2]
[382720419,1756719737977,10000.01,0.00012622,2]
[382720420,1756719737997,10000.01,0.00012622,2]
[382720421,1756719738020,10000.01,0.00012622,2]
[382720422,1756719738041,10000.01,0.00012622,2]
[382720423,1756719738063,10000.01,0.00012622,2]
[382720424,1756719738084,10000.01,0.00012622,2]
[382720425,1756719738107,10000.01,0.00012622,2]
[382720426,1756719738129,8751.43733086,0.00012622,2]
[382720427,1756719746981,203.87399798,0.00013192,2]
[382720428,1756719770126,203.87399798,0.00013192,2]
[382720429,1756719771305,200.0,0.0002739,120]
[382720434,1756719782360,158.91512951,0.00013049,2]
[382720435,1756719793374,203.87399798,0.00013192,2]
[382720439,1756719817006,203.87399798,0.00013192,2]
[382720445,1756719840075,203.87399798,0.00013192,2]
[382720450,1756719863855,203.87399798,0.00013192,2]
[382720454,1756719887059,203.87399798,0.00013192,2]
[382720459,1756719909829,203.87399798,0.00013192,2]
[382720460,1756719933073,203.87399798,0.00013192,2]
[382720461,1756719952677,666.0,0.00012648,2]
[382720462,1756719957488,203.87399798,0.00013192,2]
[382720463,1756719981667,203.87399798,0.00013192,2]
[382720465,1756720004772,203.87399798,0.00013192,2]
[382720466,1756720028263,203.87399798,0.00013192,2]
[382720467,1756720051597,203.87399798,0.00013192,2]
[382720468,1756720075778,203.87399798,0.00013192,2]
[382720469,1756720098972,203.87399798,0.00013192,2]
[382720471,1756720122624,203.87399798,0.00013192,2]
[382720474,1756720145408,203.87399798,0.00013192,2]
[382720475,1756720168931,203.87399798,0.00013192,2]
[382720476,1756720192443,203.87399798,0.00013192,2]
[382720477,1756720215837,203.87399798,0.00013192,2]
[382720520,1756720232663,-203.87399798,0.00013325,2]
[382720522,1756720232673,-300.0,0.00013596,2]
[382720524,1756720232683,-1200.0,0.00013596,2]
[382720526,1756720232693,-709.33318366,0.00013597,2]
[382720529,1756720232717,-292.13323321,0.00013597,2]
[382720531,1756720232727,-449.4109253,0.00013597,2]
[382720533,1756720232739,-7678.50856243,0.00013597,2]
[382720535,1756720232747,-500.0,0.00013597,2]
[382720537,1756720232757,-500.0,0.00013597,2]
[382720539,1756720232767,-636.12009114,0.00013597,2]
[382720541,1756720232778,-126.17607396,0.00013597,2]
[382720558,1756720232970,-373.82392604,0.00013597,2]
[382720560,1756720232980,-367.44146711,0.00013597,2]
[382720613,1756720238577,632.55853289,0.00013461,2]
[382720621,1756720238646,-132.55853289,0.00013597,2]
[382720623,1756720238655,-500.0,0.00013597,2]
[382720625,1756720238665,-1000.0,0.00013598,2]
[382720627,1756720238674,-4710.48803301,0.00013598,2]
[382720631,1756720238700,-301.71173275,0.00013598,2]
[382720780,1756720247349,-269207.58109258,0.00013598,2]
[382720781,1756720247360,-760.38250183,0.00013598,2]
[382720782,1756720255235,5000.0,0.00013462,2]
[382720783,1756720256816,500.0,0.00013597,2]
[382720784,1756720256848,200.11481191,0.00013597,2]
[382720785,1756720256877,500.0,0.00013597,2]
[382720786,1756720256911,500.0,0.00013597,2]
[382720787,1756720256939,261.34716842,0.00013597,2]
[382720788,1756720256973,500.0,0.00013597,2]
[382720789,1756720257001,500.0,0.00013597,2]
[382720790,1756720257029,324.79739637,0.00013597,2]
[382720791,1756720257064,500.0,0.00013597,2]
[382720792,1756720257093,400.0,0.00013597,2]
[382720793,1756720257124,500.0,0.00013597,2]
[382720794,1756720257155,300.0,0.00013597,2]
[382720795,1756720257194,13.7506233,0.00013597,2]
[382720796,1756720257216,486.2493767,0.00013597,2]
[382720797,1756720257267,250.0,0.00013597,2]
[382720798,1756720263799,300.0,0.00013597,2]
[382720799,1756720264257,1458.52587349,0.00013462,2]
[382720803,1756720291284,500.0,0.00013597,2]
[382720804,1756720291312,500.0,0.00013597,2]
[382720805,1756720291348,500.0,0.00013597,2]
[382720806,1756720291379,500.0,0.00013597,2]
[382720807,1756720291407,500.0,0.00013597,2]
[382720808,1756720291438,500.0,0.00013597,2]
[382720809,1756720291484,500.0,0.00013597,2]
[382720810,1756720291513,189.72186667,0.00013597,2]
[382720811,1756720291546,500.0,0.00013597,2]
[382720812,1756720291576,500.0,0.00013597,2]
[382720813,1756720291604,500.0,0.00013597,2]
[382720814,1756720291632,400.0,0.00013597,2]
[382720815,1756720291662,500.0,0.00013597,2]
[382720816,1756720291694,500.0,0.00013597,2]
[382720817,1756720291737,500.0,0.00013597,2]
[382720818,1756720291790,415.51288314,0.00013597,2]
[382720819,1756720291814,84.48711686,0.00013597,2]
[382720820,1756720291843,500.0,0.00013597,2]
[382720821,1756720296887,203.87399798,0.00013225,2]
[382720822,1756720301293,500.0,0.00013597,2]
[382720823,1756720301327,500.0,0.00013597,2]
[382720824,1756720301363,500.0,0.00013597,2]
[382720825,1756720301393,500.0,0.00013597,2]
[382720826,1756720301423,500.0,0.00013597,2]
[382720827,1756720301454,232.5781438,0.00013597,2]
[382720828,1756720301486,500.0,0.00013597,2]
[382720829,1756720301523,500.0,0.00013597,2]
[382720830,1756720301556,500.0,0.00013597,2]
[382720831,1756720301594,500.0,0.00013597,2]
[382720832,1756720301630,398.05703274,0.00013597,2]
[382720833,1756720301666,500.0,0.00013597,2]
[382720834,1756720301937,500.0,0.00013597,2]
[382720835,1756720301968,500.0,0.00013597,2]
[382720836,1756720302008,500.0,0.00013597,2]
[382720837,1756720317118,1526.662997,0.00013462,2]
[382720838,1756720323397,300.0,0.00013597,2]
[382720839,1756720327520,254.35071162,0.00013597,2]
[382720840,1756720327544,945.64928838,0.00013597,2]
[382720843,1756720410451,992.18215827,0.00013225,2]
[382720844,1756720424470,210.25,0.00012329,2]
[382720845,1756720428813,5144.14427659,0.00013462,2]
[382720846,1756720436720,2707.78427676,0.00013462,2]
[382720847,1756720436744,355.24010406,0.00013462,2]
[382720848,1756720443333,300.0,0.00013597,2]
[382720850,1756720453967,7302.21213335,0.00013598,2]
[382720851,1756720456007,1515.38431316,0.00013598,2]
[382720852,1756720460725,203.87399798,0.00013225,2]
[382720853,1756720467767,163.48995646,0.00013598,2]
[382720854,1756720482474,159.80949499,0.00013462,2]
[382720855,1756720482501,9840.20050501,0.00013462,2]
[382720856,1756720483057,159.80949499,0.00013597,2]
[382720857,1756720483080,121.52199196,0.00013597,2]
[382720858,1756720502687,300.0,0.00013597,2]
[382720859,1756720502871,300.0,0.00013597,2]
[382720860,1756720502914,300.0,0.00013597,2]
[382720861,1756720503348,300.0,0.00013597,2]
[382720862,1756720504065,300.0,0.00013597,2]
[382720863,1756720504610,1200.0,0.00013597,2]
[382720864,1756720506308,7178.48800804,0.00013462,2]
[382720865,1756720506332,2821.52199196,0.00013462,2]
[382720866,1756720529720,7178.48800804,0.00013462,2]
[382720867,1756720529743,2821.52199196,0.00013462,2]
[382720868,1756720554050,7178.48800804,0.00013462,2]
[382720869,1756720554074,3301.52199196,0.00013462,2]
[382720870,1756720564879,300.0,0.00013597,2]
[382720871,1756720576474,6398.48800804,0.00013462,2]
[382720872,1756720576498,7763.26799196,0.00013462,2]
[382720873,1756720599033,2236.74200804,0.00013462,2]
[382720874,1756720599055,10000.01,0.00013462,2]
[382720875,1756720599077,2399.52082798,0.00013462,2]
[382720876,1756720621741,31327.0,0.00030534,60]
[382720877,1756720622129,31330.0,0.00030534,60]
[382720878,1756720622410,300.0,0.00013597,2]
[382720879,1756720622452,31327.0,0.00030534,60]
[382720880,1756720622749,7300.48917202,0.00013462,2]
[382720881,1756720622774,8063.26799196,0.00013462,2]
[382720882,1756720622867,31327.0,0.00030534,60]
[382720883,1756720623382,31327.0,0.00030534,60]
[382720884,1756720623666,31327.0,0.00030534,60]
[382720885,1756720647204,1936.74200804,0.00013462,2]
[382720886,1756720647230,2699.52082798,0.00013462,2]
[382720887,1756720682649,300.0,0.00013597,2]
[382720889,1756720736192,6389.43561662,0.00013498,2]
[382720890,1756720742386,300.0,0.00013597,2]
[382720891,1756720763319,311.0535554,0.0001319,2]
[382720892,1756720763341,464.2616596,0.0001319,2]
[382720893,1756720763650,1382.64296081,0.00013287,2]
[382720894,1756720772189,368.742274,0.00013288,2]
[382720895,1756720797413,1212.30745056,0.00013598,2]
[382720896,1756720803115,300.0,0.00013597,2]
[382720897,1756720817203,6272.05565503,0.00013498,2]
[382720898,1756720817245,10000.01,0.00013498,2]
[382720899,1756720817269,10000.01,0.00013498,2]
[382720900,1756720817292,10000.01,0.00013498,2]
[382720901,1756720817314,10000.01,0.00013498,2]
[382720902,1756720817338,10000.01,0.00013498,2]
[382720903,1756720817360,10000.01,0.00013498,2]
[382720904,1756720817382,10000.01,0.00013498,2]
[382720905,1756720817404,10000.01,0.00013498,2]
[382720906,1756720817426,10000.01,0.00013498,2]
[382720907,1756720825778,8750.81419251,0.00013363,2]
[382720908,1756720830165,7759.0,0.00025,30]